bitfinex/quotes_BTCUSD_20240921
["timestamp","ask_amount","ask_price","bid_price","bid_amount"]
[1726914092391,2.79739821,63112.0,63111.0,0.00550908]
[1726914092637,3.11429421,63112.0,63111.0,0.00550908]
[1726914092853,3.12829421,63112.0,63111.0,0.00550908]
[1726914093091,3.14229421,63112.0,63111.0,0.00550908]
[1726914094163,3.15890066,63112.0,63111.0,0.00550908]
[1726914095068,3.11420244,63112.0,63111.0,0.00550908]
[1726914095285,3.13137335,63112.0,63111.0,0.00550908]
[1726914095514,3.15964809,63112.0,63111.0,0.00550908]
[1726914098428,3.15962094,63112.0,63111.0,0.00550908]
[1726914100497,3.32270652,63112.0,63111.0,0.00550908]
[1726914101887,3.30870652,63112.0,63111.0,0.00550908]
[1726914102567,3.32270652,63112.0,63111.0,0.00550908]
[1726914102801,3.32275081,63112.0,63111.0,0.00550908]
[1726914103058,3.30875081,63112.0,63111.0,0.00550908]
[1726914103992,0.1,63105.0,63097.0,0.23749772]
[1726914104444,0.1,63105.0,63098.0,0.01115255]
[1726914104916,0.1,63105.0,63095.0,0.09866]
[1726914105389,0.114,63105.0,63095.0,0.09866]
[1726914105880,0.128,63105.0,63095.0,0.09866]
[1726914106123,0.114,63105.0,63095.0,0.09866]
[1726914106591,0.128,63105.0,63095.0,0.09866]
[1726914108897,0.2272,63105.0,63095.0,0.09866]
[1726914110392,0.39025367,63105.0,63095.0,0.09866]
[1726914110822,0.549,63105.0,63095.0,0.09866]
[1726914113280,0.6200762,63105.0,63095.0,0.00226]
[1726914113899,0.549,63105.0,63095.0,0.00226]
[1726914114572,0.6200762,63105.0,63095.0,0.00226]
[1726914114788,0.549,63105.0,63095.0,0.00226]
[1726914115446,0.535,63105.0,63095.0,0.003085]
[1726914117736,0.549,63105.0,63095.0,0.003085]
[1726914118949,0.707468,63105.0,63095.0,0.003085]
[1726914119169,0.80224179,63105.0,63095.0,0.003085]
[1726914119386,0.549,63105.0,63095.0,0.003085]
[1726914120649,0.549,63105.0,63096.0,0.95085656]
[1726914120876,0.549,63105.0,63095.0,0.003085]
[1726914121097,0.535,63105.0,63097.0,0.01115779]
[1726914121316,0.521,63105.0,63095.0,0.003085]
[1726914121538,0.535,63105.0,63095.0,0.003085]
[1726914122441,0.549,63105.0,63095.0,0.003085]
[1726914123805,0.62009053,63105.0,63095.0,0.003085]
[1726914125667,0.549,63105.0,63095.0,0.003085]
[1726914126334,0.4498,63105.0,63096.0,0.95085656]
[1726914126589,0.4498,63105.0,63098.0,0.250583]
[1726914126841,0.4498,63105.0,63098.0,0.0921]
[1726914127076,0.4498,63105.0,63099.0,0.01116837]
[1726914127540,0.4358,63105.0,63099.0,0.01116837]
[1726914127984,0.4498,63105.0,63099.0,0.01116837]
[1726914128414,0.4218,63105.0,63099.0,0.01116837]
[1726914128638,0.42345,63105.0,63099.0,0.01116837]
[1726914128850,0.44945,63105.0,63099.0,0.01116837]
[1726914129345,0.43545,63105.0,63099.0,0.01116837]
[1726914129572,0.44845,63105.0,63099.0,0.01116837]
[1726914134387,0.51956882,63105.0,63099.0,0.01116837]
[1726914136877,0.51954848,63105.0,63099.0,0.01116837]
[1726914140930,0.51954848,63105.0,63099.0,0.01199337]
[1726914141540,0.51955904,63105.0,63099.0,0.01199337]
[1726914144406,0.51955708,63105.0,63099.0,0.01199337]
[1726914149512,0.44845,63105.0,63099.0,0.01199337]
[1726914153238,0.5195547,63105.0,63099.0,0.01199337]
[1726914154423,0.44845,63105.0,63099.0,0.01199337]
[1726914158883,0.44845,63105.0,63099.0,0.000825]
[1726914159330,0.44845,63105.0,63100.0,0.01276338]
[1726914159558,0.44845,63105.0,63099.0,0.000825]
[1726914160060,0.44845,63105.0,63100.0,0.01276338]
[1726914160505,0.43645,63105.0,63099.0,0.000825]
[1726914160718,0.44845,63105.0,63101.0,0.01276271]
[1726914160970,0.44845,63105.0,63100.0,0.01276338]
[1726914161214,0.44845,63105.0,63099.0,0.000825]
[1726914161215,0.44845,63105.0,63101.0,0.01276271]
[1726914161448,0.43645,63105.0,63099.0,0.000825]
[1726914161696,0.44845,63105.0,63099.0,0.000825]
[1726914161935,0.43545,63105.0,63100.0,0.01276338]
[1726914162152,0.44745,63105.0,63100.0,0.01276338]
[1726914162384,0.43545,63105.0,63099.0,0.000825]
[1726914162600,0.43545,63105.0,63100.0,0.01276338]
[1726914162832,0.44745,63105.0,63099.0,0.000825]
[1726914163054,0.43545,63105.0,63101.0,0.01276271]
[1726914163276,0.50657797,63105.0,63100.0,0.01276338]
[1726914163521,0.49457797,63105.0,63099.0,0.000825]
[1726914163731,0.49457797,63105.0,63101.0,0.01276271]
[1726914163957,0.49457797,63105.0,63099.0,0.000825]
[1726914164175,0.50457797,63105.0,63100.0,0.01276338]
[1726914164399,0.43345,63105.0,63099.0,0.000825]
[1726914164609,0.43345,63105.0,63100.0,0.01276338]
[1726914164862,0.43345,63105.0,63099.0,0.000825]
[1726914165078,0.44545,63105.0,63101.0,0.012765]
[1726914165287,0.44545,63105.0,63100.0,0.01276567]
[1726914165288,0.43545,63105.0,63100.0,0.01276567]
[1726914165555,0.43545,63105.0,63099.0,0.000825]
[1726914165790,0.44545,63105.0,63100.0,0.01276565]
[1726914166018,0.43345,63105.0,63099.0,0.000825]
[1726914166243,0.44545,63105.0,63100.0,0.01276565]
[1726914166468,0.43345,63105.0,63100.0,0.01276565]
[1726914166711,0.43345,63105.0,63099.0,0.000825]
[1726914166956,0.43345,63105.0,63101.0,0.01276498]
[1726914167167,0.42345,63105.0,63099.0,0.000825]
[1726914167439,0.43545,63105.0,63099.0,0.000825]
[1726914167668,0.44545,63105.0,63099.0,0.000825]
[1726914168127,0.43545,63105.0,63099.0,0.000825]
[1726914168354,0.44545,63105.0,63100.0,0.01276565]
[1726914168591,0.44545,63105.0,63099.0,0.000825]
[1726914168812,0.43345,63105.0,63100.0,0.01276416]
[1726914169036,0.43545,63105.0,63099.0,0.000825]
[1726914169263,0.43545,63105.0,63101.0,0.01276349]
[1726914169512,0.42345,63105.0,63099.0,0.000825]
[1726914169768,0.43545,63105.0,63099.0,0.000825]
[1726914170019,0.42345,63105.0,63100.0,0.01276423]
[1726914170240,0.5183181,63105.0,63099.0,0.000825]
[1726914170465,0.44545,63105.0,63101.0,0.01276317]
[1726914170683,0.52833566,63105.0,63099.0,0.000825]
[1726914170921,0.51833566,63105.0,63102.0,0.0127625]
[1726914171160,0.51833566,63105.0,63099.0,0.000825]
[1726914171388,0.51833566,63105.0,63100.0,0.01276384]
[1726914171616,0.52833566,63105.0,63099.0,0.000825]
[1726914171835,0.52833566,63105.0,63100.0,0.01276384]
[1726914172075,0.44545,63105.0,63099.0,0.000825]
[1726914172318,0.43545,63105.0,63101.0,0.01276317]
[1726914172565,0.43545,63105.0,63102.0,0.0127625]
[1726914173048,0.43545,63105.0,63099.0,0.000825]
[1726914173491,0.42345,63105.0,63099.0,0.000825]
[1726914173720,0.44545,63105.0,63100.0,0.01276415]
[1726914174157,0.43545,63105.0,63099.0,0.000825]
[1726914174394,0.43545,63105.0,63100.0,0.01276415]
[1726914174618,0.44545,63105.0,63099.0,0.000825]
[1726914175136,0.43345,63105.0,63100.0,0.01276415]
[1726914175359,0.42345,63105.0,63100.0,0.01276415]
[1726914175581,0.43545,63105.0,63099.0,0.000825]
[1726914175817,0.43545,63105.0,63100.0,0.01276415]
[1726914176051,0.43545,63105.0,63099.0,0.000825]
[1726914176278,0.43345,63105.0,63101.0,0.01276348]
[1726914176509,0.43345,63105.0,63099.0,0.000825]
[1726914176738,0.44545,63105.0,63102.0,0.01276281]
[1726914176964,0.43345,63105.0,63099.0,0.000825]
[1726914177207,0.43345,63105.0,63100.0,0.01276415]
[1726914177442,0.43345,63105.0,63099.0,0.000825]
[1726914177693,0.42345,63105.0,63099.0,0.000825]
[1726914177915,0.42345,63105.0,63100.0,0.01276415]
[1726914178135,0.43345,63105.0,63100.0,0.01276415]
[1726914178359,0.43345,63105.0,63099.0,0.000825]
[1726914178586,0.44545,63105.0,63100.0,0.01276544]
[1726914178812,0.42345,63105.0,63099.0,0.000825]
[1726914179254,0.44545,63105.0,63100.0,0.01276544]
[1726914179698,0.43545,63105.0,63099.0,0.000825]
[1726914179916,0.42345,63105.0,63101.0,0.01276477]
[1726914180148,0.42345,63105.0,63099.0,0.000825]
[1726914180349,0.43745,63105.0,63102.0,0.0127641]
[1726914180784,0.43745,63105.0,63099.0,0.000825]
[1726914181049,0.43745,63105.0,63100.0,0.01276706]
[1726914181271,0.44745,63105.0,63100.0,0.01276706]
[1726914181508,0.44745,63105.0,63099.0,0.000825]
[1726914181732,0.43345,63105.0,63101.0,0.01276637]
[1726914181963,0.42345,63105.0,63100.0,0.01276704]
[1726914182180,0.53237157,63105.0,63102.0,0.01276408]
[1726914182396,0.53237157,63105.0,63099.0,0.000825]
[1726914182614,0.43745,63105.0,63100.0,0.01276546]
[1726914182873,0.43745,63105.0,63099.0,0.000825]
[1726914183102,0.43745,63105.0,63101.0,0.01276479]
[1726914183538,0.45145,63105.0,63099.0,0.000825]
[1726914183750,0.45145,63105.0,63102.0,0.01276412]
[1726914183971,0.45145,63105.0,63099.0,0.000825]
[1726914184423,0.5323713,63105.0,63100.0,0.01276546]
[1726914184660,0.43745,63105.0,63100.0,0.01276546]
[1726914184907,0.43745,63105.0,63099.0,0.000825]
[1726914185139,0.45145,63105.0,63101.0,0.01276453]
[1726914185414,0.43745,63105.0,63099.0,0.000825]
[1726914185645,0.5463713,63105.0,63100.0,0.0127652]
[1726914185881,0.5463713,63105.0,63099.0,0.000825]
[1726914186117,0.5323713,63105.0,63099.0,0.000825]
[1726914186347,0.5463713,63105.0,63100.0,0.0127652]
[1726914186796,0.5183713,63105.0,63099.0,0.000825]
[1726914187027,0.5183713,63105.0,63100.0,0.0127652]
[1726914187263,0.5183713,63105.0,63099.0,0.000825]
[1726914187732,0.5183713,63105.0,63100.0,0.0127652]
[1726914188169,0.5463713,63105.0,63099.0,0.000825]
[1726914188401,0.54637094,63105.0,63101.0,0.01276615]
[1726914188658,0.53237094,63105.0,63102.0,0.01276548]
[1726914188869,0.54637094,63105.0,63102.0,0.01276548]
[1726914189100,0.51837094,63105.0,63099.0,0.000825]
[1726914189561,0.54637094,63105.0,63100.0,0.01276682]
[1726914189788,0.53237094,63105.0,63100.0,0.01276682]
[1726914189996,0.51837094,63105.0,63101.0,0.01276487]
[1726914190227,0.53237094,63105.0,63101.0,0.01276487]
[1726914190515,0.53237094,63105.0,63099.0,0.000825]
[1726914190729,0.53237094,63105.0,63102.0,0.0127642]
[1726914190943,0.53237094,63105.0,63099.0,0.000825]
[1726914191155,0.53237094,63105.0,63103.0,0.01276304]
[1726914191364,0.53237094,63105.0,63099.0,0.000825]
[1726914191587,0.43745,63105.0,63099.0,0.000825]
[1726914191814,0.45145,63105.0,63100.0,0.01276505]
[1726914192037,0.43745,63105.0,63099.0,0.000825]
[1726914192261,0.43745,63105.0,63100.0,0.01276541]
[1726914192488,0.54637094,63105.0,63100.0,0.01276541]
[1726914192715,0.54637094,63105.0,63099.0,0.000825]
[1726914192937,0.54637094,63105.0,63101.0,0.01276474]
[1726914192938,0.53237094,63105.0,63101.0,0.01276474]
[1726914193165,0.54637094,63105.0,63101.0,0.01276474]
[1726914193399,0.53237094,63105.0,63102.0,0.01276407]
[1726914193635,0.53237094,63105.0,63099.0,0.000825]
[1726914193851,0.53237094,63105.0,63100.0,0.01276541]
[1726914194084,0.53237094,63105.0,63099.0,0.000825]
[1726914194307,0.53237094,63105.0,63101.0,0.01276474]
[1726914194532,0.53237094,63105.0,63099.0,0.000825]
[1726914194533,0.53237094,63105.0,63100.0,0.01276541]
[1726914194761,0.53237094,63105.0,63099.0,0.000825]
[1726914194983,0.53237094,63105.0,63101.0,0.01276474]
[1726914195225,0.51837094,63105.0,63099.0,0.000825]
[1726914195456,0.51837094,63105.0,63100.0,0.01276541]
[1726914195462,0.53237094,63105.0,63100.0,0.01276541]
[1726914195693,0.54637094,63105.0,63099.0,0.000825]
[1726914195909,0.54637094,63105.0,63101.0,0.01276474]
[1726914196136,0.51837094,63105.0,63099.0,0.000825]
[1726914196372,0.51837094,63105.0,63102.0,0.01276407]
[1726914196589,0.54637094,63105.0,63099.0,0.000825]
[1726914196818,0.53237094,63105.0,63100.0,0.01276541]
[1726914197113,0.53237094,63105.0,63099.0,0.000825]
[1726914197578,0.53237094,63105.0,63100.0,0.01276541]
[1726914197804,0.53237094,63105.0,63099.0,0.000825]
[1726914198019,0.51837094,63105.0,63100.0,0.01276581]
[1726914198242,0.53237094,63105.0,63099.0,0.000825]
[1726914198468,0.42345,63105.0,63100.0,0.01276581]
[1726914198707,0.43745,63105.0,63100.0,0.01276581]
[1726914198932,0.45145,63105.0,63099.0,0.000825]
[1726914199180,0.45145,63105.0,63101.0,0.01276514]
[1726914199405,0.43745,63105.0,63101.0,0.01276514]
[1726914199632,0.43745,63105.0,63102.0,0.01276447]
[1726914199864,0.43745,63105.0,63099.0,0.000825]
[1726914200326,0.43745,63105.0,63100.0,0.01276581]
[1726914200781,0.43745,63105.0,63099.0,0.000825]
[1726914201052,0.43745,63105.0,63100.0,0.01276581]
[1726914201268,0.43745,63105.0,63099.0,0.000825]
[1726914201960,0.45145,63105.0,63100.0,0.01276581]
[1726914202195,0.45145,63105.0,63099.0,0.000825]
[1726914202443,0.43745,63105.0,63100.0,0.01276581]
[1726914202678,0.45145,63105.0,63099.0,0.000825]
[1726914202929,0.45145,63105.0,63101.0,0.01276514]
[1726914203164,0.45145,63105.0,63100.0,0.01276581]
[1726914203397,0.45145,63105.0,63101.0,0.01276777]
[1726914203654,0.45145,63105.0,63100.0,0.000825]
[1726914203883,0.45145,63105.0,63101.0,0.01276777]
[1726914204372,0.51613561,63105.0,63100.0,0.000825]
[1726914205126,0.53013561,63105.0,63100.0,0.000825]
[1726914206059,0.45145,63105.0,63101.0,0.23771037]
[1726914206301,0.45145,63105.0,63102.0,0.01219069]
[1726914206773,0.45145,63105.0,63100.0,0.000825]
[1726914207440,0.43745,63105.0,63100.0,0.000825]
[1726914208994,0.43745,63105.0,63104.0,0.158468]
[1726914208995,0.33745,63105.0,63104.0,0.158468]
[1726914209216,0.35145,63105.0,63104.0,0.0121939]
[1726914210363,0.33745,63105.0,63103.0,0.0905]
[1726914210599,0.33745,63105.0,63104.0,0.01219393]
[1726914210833,0.35145,63105.0,63100.0,0.091325]
[1726914211068,0.33745,63105.0,63101.0,0.01219594]
[1726914211300,0.32345,63105.0,63100.0,0.091325]
[1726914211518,0.33745,63105.0,63102.0,0.01219527]
[1726914211767,0.33545,63105.0,63104.0,0.0905]
[1726914212006,0.33545,63105.0,63104.0,0.10269393]
[1726914212240,0.34845,63105.0,63104.0,0.10269393]
[1726914212501,0.42345,63105.0,63104.0,0.10269393]
[1726914212979,0.43645,63105.0,63104.0,0.10269393]
[1726914213209,0.45383273,63105.0,63104.0,0.10269393]
[1726914213895,0.46583273,63105.0,63104.0,0.10269393]
[1726914214120,0.45283273,63105.0,63104.0,0.10269393]
[1726914214354,0.44083273,63105.0,63104.0,0.10269393]
[1726914214581,0.45283273,63105.0,63104.0,0.10269393]
[1726914214810,0.46383273,63105.0,63104.0,0.10269393]
[1726914215741,0.49167374,63105.0,63104.0,0.10269393]
[1726914216459,0.49169087,63105.0,63104.0,0.10269393]
[1726914217796,0.52810807,63105.0,63104.0,0.10269393]
[1726914218023,0.52610807,63105.0,63104.0,0.10269393]
[1726914218277,0.53710807,63105.0,63104.0,0.10269393]
[1726914218496,0.52710807,63105.0,63104.0,0.10269393]
[1726914218713,0.51610807,63105.0,63104.0,0.10269393]
[1726914218942,0.53510807,63105.0,63104.0,0.10269393]
[1726914219626,0.48769087,63105.0,63104.0,0.10269393]
[1726914219853,0.44245,63105.0,63104.0,0.10269393]
[1726914220083,0.48768152,63105.0,63104.0,0.10269393]
[1726914220371,0.55880732,63105.0,63104.0,0.10269393]
[1726914222773,0.48768152,63105.0,63104.0,0.10269393]
[1726914223207,0.55880732,63105.0,63104.0,0.10269393]
[1726914223402,0.48768152,63105.0,63104.0,0.10269393]
[1726914223673,0.48773537,63105.0,63104.0,0.10269393]
[1726914224769,0.55886117,63105.0,63104.0,0.10269393]
[1726914225213,0.48773537,63105.0,63104.0,0.10269393]
[1726914225661,0.48773537,63105.0,63104.0,0.01219393]
[1726914225884,0.48773537,63105.0,63104.0,0.01301893]
[1726914226106,0.48773537,63105.0,63104.0,0.01301814]
[1726914226330,0.55886117,63105.0,63104.0,0.01301814]
[1726914227248,0.48773537,63105.0,63104.0,0.01301814]
[1726914228666,0.55885722,63105.0,63104.0,0.01301814]
[1726914231449,0.55885587,63105.0,63104.0,0.01301814]
[1726914232915,0.54885587,63105.0,63104.0,0.01301814]
[1726914233149,0.55885587,63105.0,63104.0,0.01301814]
[1726914233386,0.54985587,63105.0,63104.0,0.01301814]
[1726914233624,0.55885587,63105.0,63104.0,0.01301814]
[1726914234078,0.54985587,63105.0,63104.0,0.01301814]
[1726914234545,0.55785587,63105.0,63104.0,0.01301814]
[1726914235253,0.54785587,63105.0,63104.0,0.01301814]
[1726914235485,0.55685587,63105.0,63104.0,0.01301814]
[1726914238068,0.55685587,63105.0,63104.0,0.000825]
[1726914238303,0.55685587,63105.0,63104.0,0.01301814]
[1726914238304,0.55681126,63105.0,63104.0,0.01301814]
[1726914238529,0.55681126,63105.0,63104.0,0.000825]
[1726914238727,0.55681126,63105.0,63104.0,0.01301814]
[1726914238944,0.55681126,63105.0,63104.0,0.000825]
[1726914239172,0.55681126,63105.0,63104.0,0.01301814]
[1726914239404,0.55681126,63105.0,63104.0,0.000825]
[1726914239641,0.55681126,63105.0,63104.0,0.01302123]
[1726914239879,0.55681126,63105.0,63104.0,0.000825]
[1726914240339,0.55681126,63105.0,63104.0,0.01302134]
[1726914240570,0.55681126,63105.0,63104.0,0.000825]
[1726914240803,0.55681126,63105.0,63104.0,0.01302134]
[1726914240804,0.55681489,63105.0,63104.0,0.01302134]
[1726914241036,0.55678561,63105.0,63104.0,0.000825]
[1726914241259,0.55678561,63105.0,63104.0,0.01302144]
[1726914241492,0.55678561,63105.0,63104.0,0.000825]
[1726914241963,0.55678561,63105.0,63104.0,0.01302144]
[1726914242209,0.55678561,63105.0,63104.0,0.000825]
[1726914242487,0.55678561,63105.0,63104.0,0.01302144]
[1726914242715,0.55678561,63105.0,63104.0,0.000825]
[1726914242944,0.55678561,63105.0,63104.0,0.01302144]
[1726914243174,0.55678561,63105.0,63104.0,0.000825]
[1726914243424,0.55678561,63105.0,63104.0,0.01302144]
[1726914243655,0.55678561,63105.0,63104.0,0.000825]
[1726914243912,0.55678561,63105.0,63104.0,0.01302144]
[1726914244408,0.51157413,63105.0,63104.0,0.01302144]
[1726914244623,0.5567117,63105.0,63104.0,0.01302144]
[1726914247621,0.4855892,63105.0,63104.0,0.01302144]
[1726914247848,0.48564373,63105.0,63104.0,0.01302144]
[1726914249011,0.48564373,63105.0,63104.0,0.000825]
[1726914249236,0.48564373,63105.0,63104.0,0.01302144]
[1726914249481,0.48564373,63105.0,63104.0,0.000825]
[1726914249715,0.48564373,63105.0,63104.0,0.01302144]
[1726914250139,0.55676195,63105.0,63104.0,0.01302144]
[1726914251308,0.44045,63105.0,63104.0,0.01302144]
[1726914251547,0.46826388,63105.0,63104.0,0.01302144]
[1726914251794,0.48564755,63105.0,63104.0,0.01302144]
[1726914253367,0.58047755,63105.0,63104.0,0.01302144]
[1726914254246,0.58052718,63105.0,63104.0,0.01302144]
[1726914254965,0.48564755,63105.0,63104.0,0.01302144]
[1726914258558,0.44045,63105.0,63104.0,0.01302144]
[1726914258834,0.48559811,63105.0,63104.0,0.01302144]
[1726914260163,0.604227,63105.0,63104.0,0.01302144]
[1726914262260,0.60422685,63105.0,63104.0,0.01302144]
[1726914263657,0.6042315,63105.0,63104.0,0.01302144]
[1726914264837,0.6042315,63105.0,63104.0,0.11222144]
[1726914265533,0.55908354,63105.0,63104.0,0.11222144]
[1726914265756,0.58682999,63105.0,63104.0,0.11222144]
[1726914265996,0.60417152,63105.0,63104.0,0.11222144]
[1726914266521,0.48553798,63105.0,63104.0,0.27068944]
[1726914266745,0.48553798,63105.0,63104.0,0.11222144]
[1726914266958,0.60417152,63105.0,63104.0,0.27068944]
[1726914268547,0.60417603,63105.0,63104.0,0.27068944]
[1726914269007,0.55908805,63105.0,63104.0,0.27068944]
[1726914269258,0.60395082,63105.0,63104.0,0.27068944]
[1726914269695,0.48531277,63105.0,63104.0,0.27068944]
[1726914269916,0.60395082,63105.0,63104.0,0.27068944]
[1726914270150,0.48531277,63105.0,63104.0,0.27068944]
[1726914270384,0.60395082,63105.0,63104.0,0.27068944]
[1726914271088,0.60395082,63105.0,63104.0,0.58762644]
[1726914271089,0.48531277,63105.0,63104.0,0.58762644]
[1726914272659,0.44045,63105.0,63104.0,0.58762644]
[1726914272905,0.48534771,63105.0,63104.0,0.58762644]
[1726914274551,0.5802764,63105.0,63104.0,0.58762644]
[1726914276118,0.55265563,63105.0,63104.0,0.17148944]
[1726914276337,0.58029873,63105.0,63104.0,0.17148944]
[1726914276563,0.48537004,63105.0,63104.0,0.48842644]
[1726914277034,0.58029649,63105.0,63104.0,0.48842644]
[1726914277477,0.48537004,63105.0,63104.0,0.48842644]
[1726914278153,0.48537004,63105.0,63104.0,0.17148944]
[1726914278624,0.58029405,63105.0,63104.0,0.17148944]
[1726914279359,0.48537979,63105.0,63104.0,0.01302144]
[1726914279609,0.48537979,63105.0,63104.0,0.17148944]
[1726914282606,0.48537979,63105.0,63104.0,0.01302144]
[1726914284942,0.60403595,63105.0,63104.0,0.01302144]
[1726914285191,0.48537979,63105.0,63104.0,0.01302144]
[1726914285400,0.60403595,63105.0,63104.0,0.01302144]
[1726914286092,0.48537979,63105.0,63104.0,0.01302144]
[1726914286344,0.55910616,63105.0,63104.0,0.01302144]
[1726914286584,0.60401438,63105.0,63104.0,0.01302144]
[1726914287264,0.6202605,63105.0,63104.0,0.01302144]
[1726914287488,0.50160434,63105.0,63104.0,0.01302144]
[1726914287944,0.50160434,63105.0,63104.0,0.000825]
[1726914288716,0.50160434,63105.0,63104.0,0.01302398]
[1726914288946,0.50160434,63105.0,63104.0,0.000825]
[1726914289382,0.50142632,63105.0,63104.0,0.01302398]
[1726914289596,0.50142632,63105.0,63104.0,0.000825]
[1726914289813,0.50142632,63105.0,63104.0,0.01302398]
[1726914290040,0.50142632,63105.0,63104.0,0.000825]
[1726914290274,0.50142632,63105.0,63104.0,0.01302398]
[1726914290488,0.50142632,63105.0,63104.0,0.000825]
[1726914290715,0.50142632,63105.0,63104.0,0.01302398]
[1726914290933,0.50142632,63105.0,63104.0,0.000825]
[1726914291175,0.50142632,63105.0,63104.0,0.01302398]
[1726914291393,0.50142632,63105.0,63104.0,0.000825]
[1726914291624,0.50142632,63105.0,63104.0,0.01302398]
[1726914291856,0.50142632,63105.0,63104.0,0.000825]
[1726914292081,0.50142632,63105.0,63104.0,0.01302398]
[1726914292355,0.50142632,63105.0,63104.0,0.000825]
[1726914292571,0.50142632,63105.0,63104.0,0.01302398]
[1726914293024,0.45669612,63105.0,63104.0,0.01302398]
[1726914293267,0.50138105,63105.0,63104.0,0.01302398]
[1726914295474,0.45669612,63105.0,63104.0,0.01302398]
[1726914295692,0.50138344,63105.0,63104.0,0.01302398]
[1726914299510,0.45669612,63105.0,63104.0,0.01302398]
[1726914300031,0.50124083,63105.0,63104.0,0.01302398]
[1726914300939,0.48499471,63105.0,63104.0,0.01302398]
[1726914302136,0.38499471,63105.0,63104.0,0.01302398]
[1726914304202,0.38496733,63105.0,63104.0,0.01302398]
[1726914306061,0.50353984,63105.0,63104.0,0.01302398]
[1726914306751,0.38496733,63105.0,63104.0,0.01302398]
[1726914308224,0.50353995,63105.0,63104.0,0.01302398]
[1726914308424,0.38496733,63105.0,63104.0,0.01302398]
[1726914308877,0.50355002,63105.0,63104.0,0.01302398]
[1726914309100,0.38496733,63105.0,63104.0,0.01302398]
[1726914312712,0.50357128,63105.0,63104.0,0.01302398]
[1726914313196,0.38496733,63105.0,63104.0,0.01302398]
[1726914313421,0.38493104,63105.0,63104.0,0.01302398]
[1726914314347,0.45905191,63105.0,63104.0,0.01302398]
[1726914314580,0.34045,63105.0,63104.0,0.01302398]
[1726914314801,0.38491548,63105.0,63104.0,0.01302398]
[1726914319803,0.34045,63105.0,63104.0,0.01302398]
[1726914319994,0.38509451,63105.0,63104.0,0.01302398]
[1726914325942,0.34045,63105.0,63104.0,0.01302398]
[1726914326422,0.38501138,63105.0,63104.0,0.01302398]
[1726914327355,0.98501138,63105.0,63104.0,0.01302398]
[1726914327819,0.98501138,63105.0,63104.0,0.000825]
[1726914329018,0.94045,63105.0,63104.0,0.000825]
[1726914329260,0.98481281,63105.0,63104.0,0.000825]
[1726914330158,0.95751262,63105.0,63104.0,0.000825]
[1726914332372,0.95747859,63105.0,63104.0,0.000825]
[1726914332598,1.0998526,63105.0,63104.0,0.000825]
[1726914334226,0.95747859,63105.0,63104.0,0.000825]
[1726914334479,1.09988197,63105.0,63104.0,0.000825]
[1726914335399,0.95747859,63105.0,63104.0,0.000825]
[1726914338395,0.94045,63105.0,63104.0,0.000825]
[1726914338632,0.95746932,63105.0,63104.0,0.000825]
[1726914340072,0.95746932,63105.0,63104.0,0.01312765]
[1726914340273,0.95746932,63105.0,63104.0,0.000825]
[1726914344786,0.95733576,63105.0,63104.0,0.000825]
[1726914348469,0.95733576,63105.0,63104.0,0.01312616]
[1726914349150,0.95733576,63105.0,63104.0,0.000825]
[1726914349863,0.95733576,63105.0,63104.0,0.01312616]
[1726914350961,1.09972142,63105.0,63104.0,0.01312616]
[1726914351335,0.95733576,63105.0,63104.0,0.01312616]
[1726914353343,0.94045,63105.0,63104.0,0.01312616]
[1726914353565,0.95731549,63105.0,63104.0,0.01312616]
[1726914356738,0.95731549,63105.0,63104.0,0.000825]
[1726914356970,0.95731549,63105.0,63104.0,0.01312454]
[1726914357446,0.95728621,63105.0,63104.0,0.01312454]
[1726914360296,0.94045,63105.0,63104.0,0.01312454]
[1726914360522,0.95727913,63105.0,63104.0,0.01312454]
[1726914365946,0.9571499,63105.0,63104.0,0.000825]
[1726914366156,0.9571499,63105.0,63104.0,0.01312079]
[1726914366373,0.9571499,63105.0,63104.0,0.000825]
[1726914366902,0.9571499,63105.0,63104.0,0.01312079]
[1726914371786,0.95724081,63105.0,63104.0,0.01312079]
[1726914372270,0.95724081,63105.0,63104.0,0.000825]
[1726914372511,0.95724081,63105.0,63104.0,0.01311991]
[1726914372744,0.95724081,63105.0,63104.0,0.000825]
[1726914372975,0.95724081,63105.0,63104.0,0.01311991]
[1726914373236,1.11570681,63105.0,63104.0,0.000825]
[1726914373465,1.11570681,63105.0,63104.0,0.01311991]
[1726914373696,1.11571832,63105.0,63104.0,0.000825]
[1726914374382,1.10771832,63105.0,63104.0,0.000825]
[1726914374886,1.104916,63105.0,63104.0,0.001825]
[1726914375118,1.11278064,63105.0,63104.0,0.001825]
[1726914375323,1.24117845,63105.0,63104.0,0.000825]
[1726914375601,1.25517845,63105.0,63104.0,0.000825]
[1726914375843,1.25517169,63105.0,63104.0,0.001825]
[1726914376323,1.35882997,63105.0,63104.0,0.001825]
[1726914376833,1.37282997,63105.0,63104.0,0.001825]
[1726914377082,1.25516338,63105.0,63104.0,0.001825]
[1726914377547,1.24116338,63105.0,63104.0,0.000825]
[1726914378005,1.23830705,63105.0,63104.0,0.000825]
[1726914378257,1.25517194,63105.0,63104.0,0.000825]
[1726914378475,1.26917194,63105.0,63104.0,0.000825]
[1726914379887,1.58610394,63105.0,63104.0,0.000825]
[1726914380988,1.26917194,63105.0,63104.0,0.000825]
[1726914381219,1.25230705,63105.0,63104.0,0.000825]
[1726914381470,1.41539263,63105.0,63104.0,0.000825]
[1726914381701,1.4322193,63105.0,63104.0,0.000825]
[1726914382203,1.26913372,63105.0,63104.0,0.000825]
[1726914384450,1.90299772,63105.0,63104.0,0.000825]
[1726914387563,2.02860294,63105.0,63104.0,0.000825]
[1726914388058,2.02853484,63105.0,63104.0,0.000825]
[1726914389536,2.05633896,63105.0,63104.0,0.000825]
[1726914389789,2.21942454,63105.0,63104.0,0.000825]
[1726914389966,1.90249254,63105.0,63104.0,0.000825]
[1726914390205,1.90237048,63105.0,63104.0,0.000825]
[1726914391122,1.85780779,63105.0,63104.0,0.000825]
[1726914391371,1.73961981,63105.0,63104.0,0.000825]
[1726914394248,1.7395543,63105.0,63104.0,0.000825]
[1726914394700,1.73941458,63105.0,63104.0,0.000825]
[1726914395127,2.05634658,63105.0,63104.0,0.000825]
[1726914395344,1.73941458,63105.0,63104.0,0.000825]
[1726914396464,1.73947119,63105.0,63104.0,0.000825]
[1726914396693,2.05640319,63105.0,63104.0,0.000825]
[1726914397609,2.02877937,63105.0,63104.0,0.000825]
[1726914397830,2.05635132,63105.0,63104.0,0.000825]
[1726914400042,1.93087253,63105.0,63104.0,0.000825]